bitfinex/quotes_ETHUSD_20251025
["timestamp","ask_amount","ask_price","bid_price","bid_amount"]
[1761430994635,7.89158828,3952.4,3952.3,0.329]
[1761430995335,8.43692841,3952.4,3952.3,0.329]
[1761430995698,7.89158828,3952.4,3952.3,0.002]
[1761430995902,8.4369316,3952.4,3952.3,0.002]
[1761431000155,8.8735316,3952.4,3952.3,0.002]
[1761431000734,8.4369316,3952.4,3952.3,0.002]
[1761431002233,8.8735316,3952.4,3952.3,0.002]
[1761431005055,5.7005316,3952.4,3952.3,0.002]
[1761431005257,8.8735316,3952.4,3952.3,0.002]
[1761431011464,5.7005316,3952.4,3952.3,0.002]
[1761431011666,8.8725316,3952.4,3952.3,0.002]
[1761431012765,9.55529255,3952.4,3952.3,0.002]
[1761431013333,8.8725316,3952.4,3952.3,0.002]
[1761431025677,9.55529255,3952.4,3952.3,0.002]
[1761431040890,9.11869255,3952.4,3952.3,0.002]
[1761431041089,8.4359316,3952.4,3952.3,0.002]
[1761431042688,8.4349316,3952.4,3952.3,0.002]
[1761431043604,5.2639316,3952.4,3952.3,0.002]
[1761431043800,8.4349316,3952.4,3952.3,0.329]
[1761431044038,8.4349316,3952.4,3952.3,0.002]
[1761431057521,8.8663316,3952.4,3952.3,0.002]
[1761431058670,8.4349316,3952.4,3952.3,0.002]
[1761431058846,8.8663316,3952.4,3952.3,0.002]
[1761431059376,9.54909255,3952.4,3952.3,0.002]
[1761431063583,8.8663316,3952.4,3952.3,0.002]
[1761431064980,8.4349316,3952.4,3952.3,0.002]
[1761431070389,8.53620139,3952.4,3952.3,0.002]
[1761431072309,8.96760139,3952.4,3952.3,0.002]
[1761431072684,8.53620139,3952.4,3952.3,0.002]
[1761431077832,9.21896234,3952.4,3952.3,0.002]
[1761431078139,8.53620139,3952.4,3952.3,0.002]
[1761431078935,9.21896234,3952.4,3952.3,0.002]
[1761431080526,8.53620139,3952.4,3952.3,0.002]
[1761431084233,9.21896234,3952.4,3952.3,0.002]
[1761431093521,6.04796234,3952.4,3952.3,0.002]
[1761431093730,8.53620139,3952.4,3952.3,0.002]
[1761431097828,9.21896234,3952.4,3952.3,0.002]
[1761431098551,8.53620139,3952.4,3952.3,0.002]
[1761431103680,5.36520139,3952.4,3952.3,0.002]
[1761431103863,8.53620139,3952.4,3952.3,0.002]
[1761431104949,8.97110139,3952.4,3952.3,0.002]
[1761431109449,9.65386234,3952.4,3952.3,0.002]
[1761431114834,8.97110139,3952.4,3952.3,0.002]
[1761431117708,9.65406573,3952.4,3952.3,0.002]
[1761431117891,9.65406238,3952.4,3952.3,0.002]
[1761431122389,8.97110139,3952.4,3952.3,0.002]
[1761431124597,9.65399752,3952.4,3952.3,0.002]
[1761431125223,8.97110139,3952.4,3952.3,0.002]
[1761431125705,9.65398626,3952.4,3952.3,0.002]
[1761431139668,9.21908626,3952.4,3952.3,0.002]
[1761431139970,9.67498626,3952.4,3952.3,0.002]
[1761431140318,9.21908626,3952.4,3952.3,0.002]
[1761431140767,6.00509311,3952.4,3952.3,0.002]
[1761431140949,6.00509311,3952.4,3952.3,0.329]
[1761431141761,8.53520139,3952.4,3952.3,0.002]
[1761431144737,8.53616178,3952.4,3952.3,0.002]
[1761431148160,8.53616178,3952.4,3950.9,2.51378978]
[1761431148333,5.13858322,3952.3,3951.6,0.329]
[1761431148533,0.50688,3952.1,3951.6,0.329]
[1761431148753,4.22318371,3952.1,3951.6,0.329]
[1761431148935,3.67688,3952.1,3951.9,0.002]
[1761431150665,0.008,3951.9,3951.6,2.85960646]
[1761431152395,0.008,3951.9,3951.6,0.329]
[1761431154172,0.008,3951.9,3951.6,3.75741189]
[1761431154657,0.008,3951.9,3951.6,1.22679499]
[1761431158237,0.50688,3951.8,3951.6,1.22679499]
[1761431161087,0.50688,3951.8,3951.6,0.329]
[1761431166410,0.50688,3951.8,3951.6,0.002]
[1761431184032,0.009,3951.9,3951.6,3.172]
[1761431184207,0.009,3951.9,3951.6,3.2984]
[1761431184407,0.009,3951.9,3951.7,3.40694448]
[1761431184829,0.009,3951.9,3951.8,2.53049243]
[1761431185135,0.009,3951.9,3951.8,3.03737243]
[1761431189629,0.009,3951.9,3951.8,3.16377243]
[1761431200652,0.009,3951.9,3951.8,3.06267735]
[1761431200850,0.009,3951.9,3951.8,4.51140274]
[1761431201549,0.009,3951.9,3951.8,4.51340274]
[1761431213555,0.009,3951.9,3951.8,4.53870766]
[1761431213758,0.009,3951.9,3951.8,4.51340274]
[1761431215678,0.009,3951.9,3951.8,4.53870766]
[1761431217382,0.009,3951.9,3951.8,4.38700274]
[1761431217574,0.009,3951.9,3951.8,4.51340274]
[1761431225001,0.009,3951.9,3951.8,6.09390766]
[1761431225169,0.001,3952.3,3952.2,6.90921227]
[1761431225368,0.001,3952.3,3952.2,11.02216545]
[1761431225570,0.001,3952.3,3952.2,11.14856545]
[1761431225790,0.001,3952.3,3952.2,11.24978783]
[1761431231007,0.4347,3952.3,3952.2,6.87081188]
[1761431231213,0.4347,3952.3,3951.8,0.002]
[1761431231374,0.4347,3952.3,3951.6,0.002]
[1761431231375,0.50688,3951.8,3951.6,0.1284]
[1761431231578,0.50688,3951.8,3951.6,0.002]
[1761431231811,0.4337,3951.7,3951.6,0.002]
[1761431232000,0.94058,3951.7,3951.6,0.002]
[1761431232776,0.94058,3951.7,3951.6,2.5326205]
[1761431235883,0.94058,3951.7,3951.6,0.002]
[1761431237216,0.94058,3951.7,3951.6,2.5326205]
[1761431250344,0.4337,3951.7,3951.6,2.5326205]
[1761431255354,0.001,3951.8,3951.7,2.53055646]
[1761431255554,0.4347,3951.8,3951.7,2.53055646]
[1761431261332,0.4751,3951.8,3951.7,2.53055646]
[1761431261538,0.4751,3951.8,3951.7,2.65695646]
[1761431273301,0.001,3951.8,3951.7,7.33440576]
[1761431276169,0.001,3951.8,3951.7,6.24203974]
[1761431281894,0.001,3951.8,3951.7,6.28753974]
[1761431284025,0.001,3951.8,3951.7,6.24203974]
[1761431289626,0.001,3951.8,3951.7,6.28753974]
[1761431290141,0.001,3951.8,3951.7,7.84273974]
[1761431290335,0.001,3951.8,3951.7,9.10529905]
[1761431291033,0.001,3951.8,3951.7,9.20652399]
[1761431293335,0.001,3951.8,3951.7,9.16102399]
[1761431293838,0.001,3951.8,3951.7,9.20652399]
[1761431294807,0.001,3951.8,3951.7,9.99752597]
[1761431301744,0.001,3951.8,3951.7,9.95202597]
[1761431301943,0.001,3951.8,3951.7,9.99752597]
[1761431302159,0.001,3951.8,3951.7,9.95202597]
[1761431302541,0.001,3951.8,3951.7,13.12102597]
[1761431340800,0.001,3952.2,3952.1,4.08550034]
[1761431341005,0.001,3952.2,3952.1,12.29217382]
[1761431341192,0.001,3952.2,3952.1,12.41857382]
[1761431341584,0.001,3952.2,3952.1,12.85947382]
[1761431342805,0.4409,3952.5,3952.4,4.08530828]
[1761431342806,1e-08,3952.5,3952.4,4.08530828]
[1761431343105,1e-08,3952.5,3952.4,7.25430828]
[1761431343407,1e-08,3952.5,3952.4,9.20586031]
[1761431343705,1e-08,3952.5,3952.4,9.30706963]
[1761431346281,1e-08,3952.5,3952.4,9.20586031]
[1761431349602,0.011,3952.9,3952.5,4.08524427]
[1761431349806,0.011,3952.9,3952.5,8.46132953]
[1761431350017,0.011,3952.9,3952.5,10.1106987]
[1761431350716,0.011,3952.9,3952.5,10.21189727]
[1761431356709,0.011,3952.9,3952.5,9.41656983]
[1761431358626,0.464,3952.9,3952.5,9.41656983]
[1761431358816,0.454,3952.6,3952.5,9.41656983]
[1761431365953,0.001,3952.6,3952.5,9.41656983]
[1761431369659,0.454,3952.6,3952.5,9.41656983]
[1761431374752,0.454,3952.6,3952.5,9.41856983]
[1761431385597,0.001,3952.6,3952.5,9.41856983]
[1761431385767,0.4488,3952.6,3952.5,9.41856983]
[1761431387092,0.001,3952.6,3952.5,9.41856983]
[1761431393608,1e-08,3952.9,3952.8,2.52985225]
[1761431393809,1e-08,3952.9,3952.8,9.27861007]
[1761431394107,1e-08,3952.9,3952.8,9.40501007]
[1761431394309,1e-08,3952.9,3952.8,9.50619891]
[1761431397800,0.001,3953.0,3952.8,9.50619891]
[1761431397801,0.001,3953.0,3952.9,4.08498825]
[1761431398005,0.001,3953.0,3952.9,5.59656775]
[1761431398529,0.001,3953.0,3952.9,5.69775659]
[1761431402433,0.6806,3954.2,3953.7,1.5552]
[1761431402723,0.6806,3954.2,3953.6,4.08454034]
[1761431402724,0.6806,3954.2,3953.8,4.8496]
[1761431402920,0.2249,3954.2,3953.8,7.3788124]
[1761431403122,0.6806,3954.2,3953.8,11.693966]
[1761431405843,0.4557,3954.1,3953.8,11.693966]
[1761431407664,0.2249,3954.2,3953.8,11.693966]
[1761431408121,0.6806,3954.2,3953.8,11.693966]
[1761431408552,0.2249,3954.2,3953.8,11.693966]
[1761431409040,0.462,3953.9,3953.8,11.693966]
[1761431409341,0.01,3953.9,3953.8,11.693966]
[1761431409845,0.01,3953.9,3953.8,12.159666]
[1761431410041,0.011,3953.9,3953.8,12.159666]
[1761431410248,0.463,3953.9,3953.8,12.159666]
[1761431412854,0.6985,3953.9,3953.8,12.159666]
[1761431413545,0.6985,3953.9,3953.8,8.525966]
[1761431413748,0.6985,3953.9,3953.8,10.95857022]
[1761431414824,0.6985,3953.9,3953.8,9.40337022]
[1761431418757,0.6985,3953.9,3953.8,5.8226124]
[1761431425776,1.20538,3953.9,3953.8,3.167]
[1761431425975,1.20538,3953.9,3953.8,5.6962124]
[1761431427375,0.50688,3953.8,3953.7,2.52922847]
[1761431427673,0.95888,3953.8,3953.7,2.52922847]
[1761431428245,1.7179096,3953.8,3953.7,2.52922847]
[1761431429084,1.7179096,3953.8,3953.6,5.69632112]
[1761431429298,0.95888,3953.7,3953.6,5.69632112]
[1761431433766,0.452,3953.7,3953.4,0.002]
[1761431433964,0.50688,3953.8,3953.7,2.52927637]
[1761431434701,0.50688,3953.8,3953.7,5.69627637]
[1761431434702,0.95888,3953.8,3953.7,5.69627637]
[1761431438311,0.95888,3953.8,3953.7,2.52927637]
[1761431441302,0.95888,3953.8,3953.6,5.69628051]
[1761431441496,0.93738,3953.7,3953.6,5.69628051]
[1761431444323,0.2425,3953.9,3953.8,2.5292124]
[1761431444716,0.673,3953.9,3953.8,2.5292124]
[1761431452030,0.2425,3953.9,3953.8,2.5292124]
[1761431452201,0.673,3953.9,3953.8,2.5292124]
[1761431452397,0.011,3953.9,3953.8,2.5292124]
[1761431454236,0.011,3953.9,3953.8,2.6556124]
[1761431459348,0.011,3953.9,3953.8,7.86415711]
[1761431467862,0.011,3953.9,3953.8,6.65780169]
[1761431468083,0.4519,3953.9,3953.8,6.65780169]
[1761431468364,0.011,3953.9,3953.8,6.65780169]
[1761431469567,0.011,3953.9,3953.8,8.21300169]
[1761431469765,0.011,3953.9,3953.8,8.08660169]
[1761431478783,0.011,3953.9,3953.8,11.66657121]
[1761431479688,0.011,3953.9,3953.8,11.79297121]
[1761431480079,0.011,3953.9,3953.8,11.89415032]
[1761431486500,0.001,3954.2,3954.1,2.52902051]
[1761431486797,0.001,3954.2,3954.1,9.22836786]
[1761431487097,0.001,3954.2,3954.1,12.80833738]
[1761431487285,0.001,3954.2,3954.1,12.9095037]
[1761431496302,0.001,3954.2,3954.1,12.80833738]
[1761431496500,0.4662,3954.2,3954.1,12.80833738]
[1761431496700,0.4662,3954.2,3954.1,6.06136786]
[1761431496911,0.4662,3954.2,3954.1,10.95759003]
[1761431499123,0.4662,3954.2,3954.1,9.40239003]
[1761431499512,0.4662,3954.2,3954.1,5.82242051]
[1761431507523,0.97308,3954.2,3954.1,3.167]
[1761431507695,0.50688,3954.1,3953.9,3.167]
[1761431507898,0.94098,3954.1,3953.9,3.167]
[1761431508300,0.94098,3954.0,3953.9,5.69614843]
[1761431508497,0.94098,3954.0,3953.7,0.1264]
[1761431508498,0.50688,3953.9,3953.7,0.1264]
[1761431508727,0.2371,3953.8,3953.7,5.82267637]
[1761431509124,0.6712,3953.8,3953.7,5.82267637]
[1761431516832,0.2371,3953.8,3953.7,5.82267637]
[1761431517038,0.4351,3953.9,3953.8,2.5292124]
[1761431517235,0.001,3953.9,3953.8,2.5292124]
[1761431517554,0.2381,3953.9,3953.8,6.10918192]
[1761431517865,1.17908,3953.9,3953.8,6.10918192]
[1761431518939,1.17908,3953.9,3953.8,2.5292124]
[1761431532205,0.50688,3953.8,3953.7,5.69621538]
[1761431532408,0.96428,3953.8,3953.7,5.69621538]
[1761431532609,0.96428,3953.8,3953.7,2.52921538]
[1761431536912,0.50688,3953.8,3953.7,2.52921538]
[1761431537117,0.96428,3953.8,3953.7,2.52921538]
[1761431543018,0.50688,3953.8,3953.7,2.52921538]
[1761431543190,0.50788,3953.9,3953.8,2.5292124]
[1761431543391,0.001,3953.9,3953.8,2.5292124]
[1761431544799,0.96528,3953.9,3953.8,2.5292124]
[1761431545131,0.96528,3953.9,3953.8,5.6982124]
[1761431546134,0.50788,3953.9,3953.8,5.6982124]
[1761431547636,0.96528,3953.9,3953.8,5.6982124]
[1761431550249,1.20278,3953.9,3953.8,5.6982124]
[1761431551650,1.20278,3953.9,3953.8,5.7002124]
[1761431567394,1.20278,3953.9,3953.8,3.171]
[1761431567692,1.20278,3953.9,3953.8,0.002]
[1761431567693,1.32918,3953.9,3953.8,0.002]
[1761431568001,2.08828835,3953.9,3953.8,0.002]
[1761431580411,2.08828835,3953.9,3953.8,2.5312124]
[1761431580796,1.26698835,3953.9,3953.8,2.5312124]
[1761431580996,0.50788,3953.9,3953.8,2.5312124]
[1761431583488,0.50788,3953.9,3953.8,3.37145463]
[1761431588593,0.001,3953.9,3953.8,3.37145463]
[1761431589092,0.001,3953.9,3953.8,7.74566283]
[1761431589292,0.001,3953.9,3953.8,7.79116283]
[1761431593623,0.001,3953.9,3953.8,7.74566283]
[1761431595430,0.001,3953.9,3953.8,0.002]
[1761431595631,1.16908,3953.9,3953.8,0.002]
[1761431595798,1.29548,3953.9,3953.8,0.002]
[1761431595997,3.82462843,3953.9,3953.8,0.002]
[1761431596301,4.37017921,3953.9,3953.8,0.002]
[1761431599331,3.82462843,3953.9,3953.8,0.002]
[1761431599697,5.92500057,3953.9,3953.8,0.002]
[1761431602723,9.50752193,3953.9,3953.8,0.002]
[1761431605526,9.63392193,3953.9,3953.8,0.002]
[1761431609435,9.63278853,3953.9,3953.8,0.002]
[1761431610610,6.05026717,3953.9,3953.8,0.002]
[1761431621367,6.73031559,3953.9,3953.8,0.002]
[1761431623165,6.05026717,3953.9,3953.8,0.002]
[1761431625471,6.96076412,3953.9,3953.8,0.002]
[1761431625897,7.0927991,3953.9,3953.8,0.002]
[1761431628169,6.18230215,3953.9,3953.8,0.002]
[1761431633974,4.88782215,3953.9,3953.8,0.002]
[1761431634325,3.20058717,3953.9,3953.8,0.002]
[1761431634480,5.26266717,3953.9,3953.8,0.0475]
[1761431634874,5.26266717,3953.9,3953.8,0.002]
[1761431641446,5.71356717,3953.9,3953.8,0.002]
[1761431642249,5.93896717,3953.9,3953.8,0.002]
[1761431644045,6.06536717,3953.9,3953.8,0.002]
[1761431646413,5.93896717,3953.9,3953.8,0.002]
[1761431647649,8.43766717,3953.9,3953.8,0.002]
[1761431665809,5.26266717,3953.9,3953.8,0.002]
[1761431665979,8.43566717,3953.9,3953.8,0.002]
[1761431689062,7.89162843,3953.9,3953.8,0.002]
[1761431689364,8.43786745,3953.9,3953.8,0.002]
[1761431697367,8.43781866,3953.9,3953.8,0.002]
[1761431699402,4.35347023,3953.9,3953.8,0.002]
[1761431700478,4.35347023,3953.9,3953.8,0.0475]
[1761431701665,1.18047023,3953.9,3953.8,0.0475]
[1761431701866,0.63428,3953.9,3953.8,0.30537597]
[1761431703873,0.50788,3953.9,3953.8,2.83458837]
[1761431706000,0.001,3953.9,3953.8,2.83458837]
[1761431710882,0.001,3953.9,3953.8,2.96098837]
[1761431715907,0.001,3953.9,3953.8,2.91548837]
[1761431717216,0.001,3953.9,3953.8,2.96098837]
[1761431720136,0.001,3953.9,3953.8,2.91548837]
[1761431721390,0.001,3953.9,3953.8,6.08648837]
[1761431722030,0.001,3953.9,3953.8,0.38627597]
[1761431722237,0.001,3953.9,3953.8,3.55727597]
[1761431723022,0.001,3953.9,3953.8,6.08648837]
[1761431732329,0.001,3953.9,3953.8,6.13198837]
[1761431735809,0.001,3953.9,3953.8,6.08648837]
[1761431736011,0.001,3953.9,3953.8,6.13198837]
[1761431739248,0.001,3953.9,3953.8,6.23316697]
[1761431747172,0.001,3953.9,3953.8,6.18766697]
[1761431747468,0.001,3953.9,3953.8,9.76827862]
[1761431758670,0.001,3953.9,3953.8,9.81377862]
[1761431759298,0.001,3953.9,3953.8,9.76827862]
[1761431766526,0.001,3953.9,3953.8,9.66710002]
[1761431777749,0.001,3953.9,3953.8,6.08648837]
[1761431780769,0.001,3953.9,3953.8,10.45831504]
[1761431794410,0.4297,3953.9,3953.8,6.08648837]
[1761431794804,0.001,3953.9,3953.8,6.08648837]
[1761431795421,0.4297,3953.9,3953.8,6.08648837]
[1761431800197,0.001,3953.9,3953.8,6.08648837]
[1761431810538,0.001,3953.9,3953.8,7.64168837]
[1761431811037,0.001,3953.9,3953.8,8.09728837]
[1761431814123,0.001,3953.9,3953.8,4.92628837]
[1761431814321,0.001,3953.9,3953.8,8.09528837]
[1761431816969,0.001,3953.9,3953.8,4.92628837]
[1761431817147,1.17748,3953.9,3953.8,7.2544124]
[1761431820533,1.17748,3953.9,3953.8,4.0864124]
[1761431820740,1.17748,3953.9,3953.8,7.2554124]
[1761431822146,1.17748,3953.9,3953.8,2.5312124]
[1761431822349,1.17748,3953.9,3953.8,5.7002124]
[1761431828295,1.17748,3953.9,3953.8,3.171]
[1761431828593,1.30388,3953.9,3953.8,0.002]
[1761431828768,2.06294417,3953.9,3953.8,0.002]
[1761431836203,1.42966417,3953.9,3953.8,2.5312124]
[1761431836518,1.93654417,3953.9,3953.8,2.5312124]
[1761431837021,1.94864417,3953.9,3953.8,5.7012124]
[1761431837894,0.97458,3953.9,3953.8,5.7012124]
[1761431838494,0.50788,3953.9,3953.8,5.7012124]
[1761431838839,0.97458,3953.9,3953.8,5.8276124]
[1761431841820,1.20688,3953.9,3953.8,5.8276124]
[1761431844041,1.20688,3953.9,3953.8,5.7032124]
[1761431847211,1.20688,3953.9,3953.8,3.174]
[1761431847413,1.20688,3953.9,3953.8,5.7032124]
[1761431849534,1.20688,3953.9,3953.8,3.174]
[1761431849930,1.20688,3953.9,3953.8,5.7032124]
[1761431861678,0.74018,3953.9,3953.8,5.7032124]
[1761431861833,0.50788,3953.9,3953.8,5.7032124]
[1761431865744,0.95278,3953.9,3953.8,5.7032124]
[1761431875894,1.18428,3953.9,3953.8,5.7032124]
[1761431884698,0.50788,3953.9,3953.8,5.7032124]
[1761431887269,0.001,3953.9,3953.8,10.47853796]
[1761431887498,0.001,3953.9,3953.8,10.60493796]
[1761431902931,0.001,3953.9,3953.8,7.02381921]
[1761431903608,0.001,3953.9,3953.8,7.06931921]
[1761431905954,0.001,3953.9,3953.8,7.02381921]
[1761431920285,0.4709,3953.9,3953.8,7.02381921]
[1761431920497,0.6876,3953.9,3953.8,5.8296124]
[1761431920800,0.6876,3953.9,3953.8,5.8266124]
[1761431924597,1.19448,3953.9,3953.8,5.8266124]
[1761431940032,1.17028,3953.9,3953.8,5.8266124]
[1761431955965,0.50788,3953.9,3953.8,5.8266124]
[1761431968189,0.001,3953.9,3953.8,7.0204651]
[1761431997196,0.001,3953.9,3953.8,8.5756651]
[1761431997399,0.001,3953.9,3953.8,8.72234421]
[1761431998131,0.001,3953.9,3953.8,8.67684421]
[1761432000403,0.001,3953.9,3953.8,8.72234421]
[1761432000947,0.001,3953.9,3953.8,8.67684421]
[1761432001146,0.001,3954.2,3954.1,6.10959954]
[1761432001298,0.001,3954.2,3954.1,12.56890418]
[1761432001497,0.001,3954.2,3954.1,5.94672515]
[1761432001783,0.4481,3954.2,3954.1,12.69530418]
[1761432001899,0.4481,3954.2,3954.1,12.79647817]
[1761432009344,0.001,3954.2,3954.1,12.79647817]
[1761432009553,0.474,3954.2,3954.1,12.79647817]
[1761432011639,0.001,3954.2,3954.1,12.79647817]
[1761432017062,0.001,3954.7,3954.1,12.79647817]
[1761432017263,2.03893027,3957.1,3954.1,12.79647817]
[1761432017264,0.2147,3955.7,3954.9,2.52850893]
[1761432017564,0.2147,3955.7,3955.3,6.23523225]
[1761432017565,0.6877,3955.7,3955.3,6.23523225]
[1761432017766,0.6877,3955.7,3955.3,9.40523225]
[1761432018239,0.6877,3955.7,3955.3,10.16380507]
[1761432018640,1.30926294,3955.4,3955.3,10.16380507]
[1761432019267,0.83626294,3955.4,3955.3,10.94921962]
[1761432019447,1.30926294,3955.4,3955.3,10.94921962]
[1761432019642,0.83626294,3955.4,3955.3,10.94921962]
[1761432020064,1.30926294,3955.4,3955.3,10.94921962]
[1761432024745,1.30926294,3955.4,3955.3,7.36864059]
[1761432027362,1.30926294,3955.4,3955.3,5.82465322]
[1761432034580,1.81614294,3955.4,3955.3,3.2964]
[1761432034894,0.50688,3955.3,3955.1,2.52837357]
[1761432035093,0.97988,3955.3,3955.2,3.168]
[1761432048100,0.97988,3955.3,3955.2,5.69631715]
[1761432048511,0.97988,3955.3,3955.2,3.168]
[1761432075598,0.98088,3955.3,3955.2,3.168]
[1761432082426,0.50788,3955.3,3955.2,5.69631715]
[1761432083610,0.50788,3955.3,3955.2,3.168]
[1761432084120,0.50788,3955.3,3955.2,5.69631715]
[1761432095251,0.96398,3955.3,3955.2,5.69631715]
[1761432107469,0.50788,3955.3,3955.2,5.69631715]
[1761432117910,0.50788,3955.3,3955.2,6.87681183]
[1761432118210,0.50788,3955.3,3955.2,6.92231183]
[1761432118911,0.001,3955.3,3955.2,6.92231183]
[1761432119310,0.001,3955.3,3955.2,7.6809844]
[1761432121383,0.001,3955.3,3955.2,7.7618844]
[1761432121584,0.001,3955.3,3955.2,7.8073844]
[1761432128530,0.001,3955.3,3955.2,7.7608844]
[1761432140181,0.921,3955.3,3955.2,7.7608844]
[1761432178160,0.91973588,3955.3,3955.2,7.7608844]
[1761432182336,0.92073588,3955.3,3955.2,7.7608844]
[1761432186481,0.92073588,3955.3,3955.2,7.00221183]
[1761432195967,1.36953588,3955.3,3955.2,7.00221183]
[1761432196794,0.92073588,3955.3,3955.2,7.00221183]
[1761432196969,1.36953588,3955.3,3955.2,7.00221183]
[1761432201904,0.92073588,3955.3,3955.2,7.00221183]
[1761432208513,1.36953588,3955.3,3955.2,7.00221183]
[1761432208716,1.36953588,3955.3,3955.2,10.57957836]
[1761432210608,1.36953588,3955.3,3955.1,0.002]
[1761432210609,0.50688,3955.2,3955.1,0.002]
[1761432210808,0.95568,3955.2,3955.1,3.168]
[1761432211420,1.71440438,3955.2,3955.1,3.168]
[1761432211920,1.71440438,3955.2,3955.1,5.69638107]
[1761432214009,0.95568,3955.2,3955.1,5.69638107]
[1761432215718,0.4488,3955.2,3955.1,5.69638107]
[1761432228606,0.92073588,3955.3,3955.2,2.52831715]
[1761432229229,0.92073588,3955.3,3955.2,2.65471715]
[1761432230233,1.36803588,3955.3,3955.2,2.65471715]
[1761432239528,0.92073588,3955.3,3955.2,2.65471715]
[1761432241750,1.38303588,3955.3,3955.2,2.65471715]
[1761432243240,0.92073588,3955.3,3955.2,2.65471715]
[1761432244059,1.38303588,3955.3,3955.2,2.65471715]
[1761432244358,0.92073588,3955.3,3955.2,2.65471715]
[1761432257065,0.92073588,3955.3,3955.2,6.23208368]
[1761432257594,1.38013588,3955.3,3955.2,6.23208368]
[1761432270710,1.38013588,3955.3,3955.2,2.65471715]
[1761432295981,0.63328,3955.8,3955.2,2.65471715]
[1761432295982,0.01,3955.9,3955.4,2.52818931]
[1761432296148,0.2336,3956.8,3956.0,4.08300586]
[1761432296348,0.2336,3956.8,3956.0,7.24900586]
[1761432296548,0.50688,3956.7,3956.0,7.52810586]
[1761432296775,0.50688,3956.7,3956.0,8.97067179]
[1761432296977,0.2336,3956.8,3956.0,8.97067179]
[1761432297181,0.01,3956.9,3956.0,8.92517179]
[1761432297367,0.01,3956.9,3956.8,2.52729478]
[1761432297575,0.01,3956.9,3956.8,10.06391457]
[1761432297951,0.01,3956.9,3956.8,10.72691457]
[1761432302893,0.4499,3956.9,3956.8,10.72691457]
[1761432303078,1.19038,3956.9,3956.8,0.663]
[1761432303266,1.19038,3956.9,3956.8,3.829]
[1761432305987,1.31678,3956.9,3956.8,3.829]
[1761432307700,1.31778,3956.9,3956.8,3.829]
[1761432308472,1.31778,3956.9,3956.8,6.35629478]
[1761432309098,1.19138,3956.9,3956.8,6.35629478]
[1761432311874,0.51788,3956.9,3956.8,7.24466514]
[1761432312080,0.011,3956.9,3956.8,7.24466514]
[1761432327437,0.6768,3956.9,3956.8,7.24466514]
[1761432327602,1.18368,3956.9,3956.8,1.55137036]
[1761432327806,1.18368,3956.9,3956.8,3.829]
[1761432328410,0.51788,3956.9,3956.8,3.829]
[1761432331046,0.95198,3956.9,3956.8,3.829]
[1761432332237,0.51788,3956.9,3956.8,3.829]
[1761432333573,0.51788,3956.9,3956.8,3.165]
[1761432333574,1.18368,3956.9,3956.8,3.165]
[1761432334826,1.18368,3956.9,3956.3,3.57526206]
[1761432334827,0.50688,3956.8,3956.3,3.57526206]
[1761432335055,0.94098,3956.8,3956.4,3.166]
[1761432335469,0.50688,3956.6,3956.4,3.166]
[1761432335865,0.4341,3956.5,3956.3,3.70166206]
[1761432336071,0.4341,3956.5,3956.4,3.166]
[1761432338780,0.4341,3956.5,3956.1,0.1284]
[1761432338781,0.4341,3956.5,3956.1,0.002]
[1761432338942,3.03455807,3956.2,3956.1,0.002]
[1761432339147,3.03455807,3956.2,3956.1,3.169]
[1761432339342,3.49655807,3956.2,3956.1,3.169]
[1761432340936,0.96888,3956.2,3956.1,3.169]
[1761432342136,3.49655807,3956.2,3956.1,3.169]
[1761432342965,0.96888,3956.2,3956.1,3.169]
[1761432343540,3.49655807,3956.2,3956.1,3.169]
[1761432344264,0.96888,3956.2,3956.1,3.169]
[1761432346479,3.49655807,3956.2,3956.1,3.169]
[1761432346780,0.96888,3956.2,3956.1,3.169]
[1761432348977,1.09528,3956.2,3956.1,3.169]
[1761432361001,0.63328,3956.2,3956.1,3.169]
[1761432361381,0.63428,3956.2,3956.1,3.169]
[1761432361582,0.001,3956.2,3956.1,6.37116817]
[1761432377673,0.97198,3956.2,3956.1,6.37116817]
[1761432378734,0.97198,3956.2,3956.1,5.69674196]
[1761432382563,0.50788,3956.2,3956.1,5.69674196]
[1761432395046,0.97198,3956.2,3956.1,5.69674196]
[1761432408977,0.50788,3956.2,3956.1,5.69674196]
[1761432419930,0.50788,3956.2,3956.1,5.82314196]
[1761432420219,0.50788,3956.2,3956.1,7.14058116]
[1761432421501,0.50788,3956.2,3956.1,7.09508116]
[1761432429125,0.97278,3956.2,3956.1,5.69474196]
[1761432430821,0.97278,3956.2,3956.1,2.52974196]
[1761432431100,0.97278,3956.2,3956.1,5.69474196]
[1761432455472,0.97278,3956.2,3956.1,0.002]
[1761432455630,1.09918,3956.2,3956.1,5.69474196]
[1761432456739,1.09918,3956.2,3956.1,2.52974196]
[1761432456958,1.09918,3956.2,3956.1,5.69474196]
[1761432457155,0.84918,3956.2,3956.1,5.69474196]
[1761432463474,0.85018,3956.2,3956.1,5.69474196]
[1761432464772,0.38528,3956.2,3956.1,5.69474196]
[1761432466542,0.82608,3956.2,3956.1,5.69474196]
[1761432471604,0.38528,3956.2,3956.1,5.69474196]
[1761432472165,0.82608,3956.2,3956.1,5.69474196]
[1761432472405,0.38528,3956.2,3956.1,5.69474196]
[1761432472574,0.25888,3956.2,3956.1,5.69474196]
[1761432476066,0.69968,3956.2,3956.1,5.69474196]
[1761432478577,0.25888,3956.2,3956.1,5.69474196]
[1761432479710,0.69968,3956.2,3956.1,5.69474196]
[1761432486326,0.25888,3956.2,3956.1,5.69474196]
[1761432488943,0.72308,3956.2,3956.1,5.69474196]
[1761432495759,0.25888,3956.2,3956.1,5.69474196]
[1761432501163,0.25888,3956.2,3956.1,6.88730597]